[Event "December 5 Late 2023"]
[Site "https://www.chess.com"]
[Date "2023.12.05"]
[Round "10"]
[White "Silvestre, Christian"]
[Black "Bogaudinov, Rushan"]
[Result "1/2-1/2"]
[Board "78"]
[TimeControl "180+1"]
[WhiteFideId "30956269"]
[BlackFideId "4129288"]
[WhiteElo "2337"]
[BlackElo "2437"]
[WhiteTeam "USA"]
[BlackTeam "RUS"]
[WhiteClock "0:00:14"]
[BlackClock "0:00:30"]

1. e4 {[%clk 0:03:00]}  e5 {[%clk 0:02:59]} 2. d4 {[%clk 0:02:58]}  exd4 {[%clk 0:02:59]} 3. Nf3 {[%clk 0:02:59]}  d5 {[%clk 0:02:56]} 4. Qxd4 {[%clk 0:02:57]}  dxe4 {[%clk 0:02:55]} 5. Qxd8+ {[%clk 0:02:56]}  Kxd8 {[%clk 0:02:55]} 6. Ng5 {[%clk 0:02:56]}  Ke8 {[%clk 0:02:50]} 7. Nxe4 {[%clk 0:02:55]}  Bf5 {[%clk 0:02:47]} 8. Bd3 {[%clk 0:02:55]}  Nc6 {[%clk 0:02:45]} 9. Nbc3 {[%clk 0:02:44]}  Nb4 {[%clk 0:02:45]} 10. Bb5+ {[%clk 0:02:43]}  c6 {[%clk 0:02:44]} 11. Ba4 {[%clk 0:02:43]}  Rd8 {[%clk 0:02:33]} 12. a3 {[%clk 0:02:39]}  Nd5 {[%clk 0:02:32]} 13. Bg5 {[%clk 0:02:36]}  f6 {[%clk 0:02:31]} 14. Bd2 {[%clk 0:02:34]}  Nxc3 {[%clk 0:02:27]} 15. Nxc3 {[%clk 0:02:32]}  Bc5 {[%clk 0:02:23]} 16. O-O-O {[%clk 0:02:20]}  Bxf2 {[%clk 0:02:18]} 17. Rdf1 {[%clk 0:02:13]}  Bxc2 {[%clk 0:02:06]} 18. Bxc2 {[%clk 0:02:03]}  Bd4 {[%clk 0:02:05]} 19. g4 {[%clk 0:01:53]}  Ne7 {[%clk 0:02:03]} 20. g5 {[%clk 0:01:53]}  Ng6 {[%clk 0:01:50]} 21. h4 {[%clk 0:01:51]}  Ke7 {[%clk 0:01:40]} 22. h5 {[%clk 0:01:47]}  Ne5 {[%clk 0:01:40]} 23. h6 {[%clk 0:01:47]}  Nc4 {[%clk 0:01:27]} 24. hxg7 {[%clk 0:01:45]}  Rhg8 {[%clk 0:01:27]} 25. Bxh7 {[%clk 0:01:19]}  Rxg7 {[%clk 0:01:22]} 26. Re1+ {[%clk 0:01:16]}  Kf8 {[%clk 0:01:15]} 27. Bf5 {[%clk 0:01:10]}  Nxd2 {[%clk 0:01:12]} 28. Rh8+ {[%clk 0:01:08]}  Rg8 {[%clk 0:01:11]} 29. Rxg8+ {[%clk 0:01:07]}  Kxg8 {[%clk 0:01:12]} 30. Kxd2 {[%clk 0:00:52]}  Bf2+ {[%clk 0:01:09]} 31. Ke2 {[%clk 0:00:52]}  Bxe1 {[%clk 0:01:09]} 32. Kxe1 {[%clk 0:00:52]}  fxg5 {[%clk 0:01:09]} 33. Ne4 {[%clk 0:00:52]}  Re8 {[%clk 0:01:04]} 34. Kf2 {[%clk 0:00:52]}  Re5 {[%clk 0:01:04]} 35. Nd6 {[%clk 0:00:37]}  Kg7 {[%clk 0:01:00]} 36. Bg4 {[%clk 0:00:29]}  b6 {[%clk 0:00:54]} 37. Nc4 {[%clk 0:00:19]}  Rc5 {[%clk 0:00:52]} 38. Ne3 {[%clk 0:00:17]}  Kf6 {[%clk 0:00:50]} 39. Be2 {[%clk 0:00:17]}  b5 {[%clk 0:00:48]} 40. Kf3 {[%clk 0:00:17]}  Re5 {[%clk 0:00:45]} 41. Ng4+ {[%clk 0:00:16]}  Ke6 {[%clk 0:00:45]} 42. Nxe5 {[%clk 0:00:17]}  Kxe5 {[%clk 0:00:46]} 43. Kg4 {[%clk 0:00:16]}  Kf6 {[%clk 0:00:44]} 44. Bd3 {[%clk 0:00:16]}  a6 {[%clk 0:00:43]} 45. b3 {[%clk 0:00:16]}  a5 {[%clk 0:00:41]} 46. a4 {[%clk 0:00:16]}  bxa4 {[%clk 0:00:36]} 47. bxa4 {[%clk 0:00:17]}  c5 {[%clk 0:00:36]} 48. Bb5 {[%clk 0:00:15]}  Kg6 {[%clk 0:00:35]} 49. Bc4 {[%clk 0:00:14]}  Kf6 {[%clk 0:00:35]} 50. Bb3 {[%clk 0:00:13]}  Kg6 {[%clk 0:00:32]} 51. Bc2+ {[%clk 0:00:14]}  Kf6 {[%clk 0:00:32]} 52. Bb1 {[%clk 0:00:14]}  Ke5 {[%clk 0:00:31]} 53. Kxg5 {[%clk 0:00:14]}  Kd4 {[%clk 0:00:31]} 54. Kf5 {[%clk 0:00:15]}  Kc3 {[%clk 0:00:31]} 55. Ke5 {[%clk 0:00:13]}  Kb3 {[%clk 0:00:31]} 56. Kd5 {[%clk 0:00:13]}  Kxa4 {[%clk 0:00:29]} 57. Kxc5 {[%clk 0:00:13]}  Kb3 {[%clk 0:00:30]} 58. Bh7 {[%clk 0:00:12]}  a4 {[%clk 0:00:30]} 59. Bg8+ {[%clk 0:00:12]}  Kb2 {[%clk 0:00:30]} 60. Bf7 {[%clk 0:00:13]}  a3 {[%clk 0:00:30]} 61. Bg8 {[%clk 0:00:14]}  a2 {[%clk 0:00:30]} 62. Bxa2 {[%clk 0:00:14]} 1/2-1/2

[Event "December 5 Late 2023"]
[Site "https://www.chess.com"]
[Date "2023.12.05"]
[Round "10"]
[White "Blanco Diez, David"]
[Black "Weisz, Bryan"]
[Result "1-0"]
[Board "80"]
[TimeControl "180+1"]
[WhiteFideId "32032927"]
[BlackFideId "30934133"]
[WhiteElo "2409"]
[BlackElo "2304"]
[WhiteTeam "ESP"]
[BlackTeam "USA"]
[WhiteClock "0:01:02"]
[BlackClock "0:00:46"]

1. Nf3 {[%clk 0:03:00]}  Nf6 {[%clk 0:02:57]} 2. b3 {[%clk 0:03:01]}  b6 {[%clk 0:02:55]} 3. Bb2 {[%clk 0:03:02]}  Bb7 {[%clk 0:02:56]} 4. c4 {[%clk 0:03:01]}  c5 {[%clk 0:02:57]} 5. e3 {[%clk 0:03:01]}  e6 {[%clk 0:02:57]} 6. Be2 {[%clk 0:03:01]}  Be7 {[%clk 0:02:58]} 7. O-O {[%clk 0:03:02]}  O-O {[%clk 0:02:59]} 8. d4 {[%clk 0:03:02]}  d5 {[%clk 0:02:59]} 9. dxc5 {[%clk 0:02:55]}  dxc4 {[%clk 0:02:59]} 10. cxb6 {[%clk 0:02:48]}  cxb3 {[%clk 0:02:41]} 11. bxa7 {[%clk 0:02:45]}  Rxa7 {[%clk 0:02:33]} 12. Qxb3 {[%clk 0:02:21]}  Nbd7 {[%clk 0:02:31]} 13. Nc3 {[%clk 0:02:18]}  Nc5 {[%clk 0:02:26]} 14. Qc2 {[%clk 0:02:18]}  Qa8 {[%clk 0:02:17]} 15. Nb5 {[%clk 0:02:06]}  Rxa2 {[%clk 0:02:11]} 16. Bc4 {[%clk 0:01:30]}  Rxa1 {[%clk 0:01:53]} 17. Rxa1 {[%clk 0:01:31]}  Qc8 {[%clk 0:01:43]} 18. Ng5 {[%clk 0:01:28]}  Qc6 {[%clk 0:01:38]} 19. Bf1 {[%clk 0:01:25]}  g6 {[%clk 0:01:23]} 20. Rc1 {[%clk 0:01:25]}  Rc8 {[%clk 0:01:17]} 21. Na7 {[%clk 0:01:25]}  Qd5 {[%clk 0:01:10]} 22. Nxc8 {[%clk 0:01:25]}  Bxc8 {[%clk 0:01:00]} 23. Bxf6 {[%clk 0:01:21]}  Bxf6 {[%clk 0:00:54]} 24. Qxc5 {[%clk 0:01:21]}  Bb7 {[%clk 0:00:53]} 25. Qxd5 {[%clk 0:01:20]}  Bxd5 {[%clk 0:00:54]} 26. Nf3 {[%clk 0:01:19]}  Bb2 {[%clk 0:00:54]} 27. Rc8+ {[%clk 0:01:18]}  Kg7 {[%clk 0:00:55]} 28. Bc4 {[%clk 0:01:19]}  Be4 {[%clk 0:00:55]} 29. Rc7 {[%clk 0:01:14]}  Kf6 {[%clk 0:00:53]} 30. Bb5 {[%clk 0:01:04]}  Be5 {[%clk 0:00:46]} 31. Nxe5 {[%clk 0:01:02]} 1-0

[Event "December 5 Late 2023"]
[Site "https://www.chess.com"]
[Date "2023.12.05"]
[Round "10"]
[White "Skaric, Djuro"]
[Black "Shapiro, Daniel"]
[Result "0-1"]
[Board "81"]
[TimeControl "180+1"]
[WhiteFideId "934569"]
[BlackFideId "2001780"]
[WhiteElo "2404"]
[BlackElo "2304"]
[WhiteTeam "SRB"]
[BlackTeam "USA"]
[WhiteClock "0:00:46"]
[BlackClock "0:00:06"]

1. g3 {[%clk 0:03:00]}  c5 {[%clk 0:02:57]} 2. Bg2 {[%clk 0:03:01]}  Nc6 {[%clk 0:02:56]} 3. c4 {[%clk 0:02:59]}  g6 {[%clk 0:02:55]} 4. Nc3 {[%clk 0:03:00]}  Bg7 {[%clk 0:02:55]} 5. d3 {[%clk 0:03:00]}  d6 {[%clk 0:02:53]} 6. e4 {[%clk 0:03:01]}  Qd7 {[%clk 0:02:54]} 7. Nge2 {[%clk 0:03:01]}  b6 {[%clk 0:02:46]} 8. O-O {[%clk 0:03:00]}  Bb7 {[%clk 0:02:47]} 9. f4 {[%clk 0:03:00]}  e6 {[%clk 0:02:47]} 10. g4 {[%clk 0:03:00]}  Nge7 {[%clk 0:02:18]} 11. Ng3 {[%clk 0:03:00]}  O-O {[%clk 0:01:45]} 12. f5 {[%clk 0:03:00]}  Bd4+ {[%clk 0:01:42]} 13. Kh1 {[%clk 0:02:58]}  f6 {[%clk 0:01:38]} 14. Bh6 {[%clk 0:02:56]}  Rf7 {[%clk 0:01:37]} 15. fxe6 {[%clk 0:02:55]}  Qxe6 {[%clk 0:01:36]} 16. Nd5 {[%clk 0:02:55]}  Ne5 {[%clk 0:01:18]} 17. h3 {[%clk 0:02:35]}  Bxb2 {[%clk 0:01:02]} 18. Rb1 {[%clk 0:02:32]}  Bd4 {[%clk 0:01:01]} 19. Nc7 {[%clk 0:02:31]}  Qd7 {[%clk 0:00:59]} 20. Nxa8 {[%clk 0:02:31]}  Bxa8 {[%clk 0:00:59]} 21. Qd2 {[%clk 0:02:18]}  Kh8 {[%clk 0:00:57]} 22. Rf4 {[%clk 0:02:09]}  Ng8 {[%clk 0:00:50]} 23. g5 {[%clk 0:02:04]}  Nxh6 {[%clk 0:00:31]} 24. gxh6 {[%clk 0:02:01]}  Nc6 {[%clk 0:00:27]} 25. Rbf1 {[%clk 0:01:58]}  Be5 {[%clk 0:00:26]} 26. Qf2 {[%clk 0:01:47]}  Bxf4 {[%clk 0:00:22]} 27. Qxf4 {[%clk 0:01:47]}  Qe7 {[%clk 0:00:22]} 28. h4 {[%clk 0:01:46]}  Qe5 {[%clk 0:00:21]} 29. Qg4 {[%clk 0:01:46]}  Qe8 {[%clk 0:00:16]} 30. h5 {[%clk 0:01:45]}  Ne5 {[%clk 0:00:16]} 31. Qe2 {[%clk 0:01:43]}  Qe7 {[%clk 0:00:12]} 32. hxg6 {[%clk 0:01:35]}  hxg6 {[%clk 0:00:13]} 33. Bh3 {[%clk 0:01:30]}  Rh7 {[%clk 0:00:12]} 34. Kg2 {[%clk 0:01:30]}  Rxh6 {[%clk 0:00:11]} 35. Qf2 {[%clk 0:01:28]}  Kg7 {[%clk 0:00:09]} 36. d4 {[%clk 0:01:22]}  cxd4 {[%clk 0:00:09]} 37. Qxd4 {[%clk 0:01:22]}  Bc6 {[%clk 0:00:09]} 38. Rd1 {[%clk 0:01:20]}  Bd7 {[%clk 0:00:08]} 39. Bf5 {[%clk 0:01:13]}  gxf5 {[%clk 0:00:07]} 40. exf5 {[%clk 0:01:13]}  Qf8 {[%clk 0:00:05]} 41. Qxd6 {[%clk 0:01:09]}  Bc6+ {[%clk 0:00:04]} 42. Kg1 {[%clk 0:01:07]}  Qxd6 {[%clk 0:00:04]} 43. Rxd6 {[%clk 0:01:07]}  Nf3+ {[%clk 0:00:04]} 44. Kf2 {[%clk 0:01:06]}  Rh2+ {[%clk 0:00:03]} 45. Ke3 {[%clk 0:01:05]}  Ne5 {[%clk 0:00:03]} 46. Rd8 {[%clk 0:01:02]}  Nxc4+ {[%clk 0:00:02]} 47. Kd4 {[%clk 0:01:02]}  Ne5 {[%clk 0:00:02]} 48. Nf1 {[%clk 0:00:54]}  Rf2 {[%clk 0:00:02]} 49. Rd7+ {[%clk 0:00:45]}  Bxd7 {[%clk 0:00:01]} 50. Ne3 {[%clk 0:00:46]}  Bxf5 {[%clk 0:00:01]} 51. Nd5 {[%clk 0:00:45]}  Rf4+ {[%clk 0:00:01]} 52. Kc3 {[%clk 0:00:45]}  Re4 {[%clk 0:00:01]} 53. Nc7 {[%clk 0:00:45]}  Bg4 {[%clk 0:00:01]} 54. Nd5 {[%clk 0:00:45]}  Ng6 {[%clk 0:00:02]} 55. Kb2 {[%clk 0:00:44]}  f5 {[%clk 0:00:03]} 56. Nc3 {[%clk 0:00:44]}  Re3 {[%clk 0:00:02]} 57. Nd5 {[%clk 0:00:44]}  Re2+ {[%clk 0:00:03]} 58. Kc3 {[%clk 0:00:43]}  f4 {[%clk 0:00:04]} 59. Kd3 {[%clk 0:00:43]}  f3 {[%clk 0:00:04]} 60. Nf4 {[%clk 0:00:44]}  Nxf4+ {[%clk 0:00:03]} 61. Kc3 {[%clk 0:00:43]}  f2 {[%clk 0:00:03]} 62. Kd4 {[%clk 0:00:44]}  f1=Q {[%clk 0:00:04]} 63. Kc3 {[%clk 0:00:44]}  Qd1 {[%clk 0:00:05]} 64. Kb4 {[%clk 0:00:44]}  Rc2 {[%clk 0:00:05]} 65. Kb5 {[%clk 0:00:45]}  Qb1+ {[%clk 0:00:05]} 66. Ka6 {[%clk 0:00:46]}  Rxa2+ {[%clk 0:00:05]} 67. Kb7 {[%clk 0:00:46]}  Rb2 {[%clk 0:00:06]} 0-1

[Event "December 5 Late 2023"]
[Site "https://www.chess.com"]
[Date "2023.12.05"]
[Round "10"]
[White "Vanek, Tomas"]
[Black "Vlassov, Nikolai"]
[Result "0-1"]
[Board "84"]
[TimeControl "180+1"]
[WhiteFideId "313459"]
[BlackFideId "4103360"]
[WhiteElo "2199"]
[BlackElo "2616"]
[WhiteTeam "CZE"]
[BlackTeam "FID"]
[WhiteClock "0:01:15"]
[BlackClock "0:02:20"]

1. e4 {[%clk 0:03:00]}  Nc6 {[%clk 0:02:56]} 2. Nc3 {[%clk 0:02:55]}  Nf6 {[%clk 0:02:55]} 3. Nf3 {[%clk 0:02:50]}  d5 {[%clk 0:02:55]} 4. e5 {[%clk 0:02:50]}  Ne4 {[%clk 0:02:54]} 5. d3 {[%clk 0:02:40]}  Nxc3 {[%clk 0:02:54]} 6. bxc3 {[%clk 0:02:39]}  Bg4 {[%clk 0:02:54]} 7. d4 {[%clk 0:02:38]}  e6 {[%clk 0:02:54]} 8. h3 {[%clk 0:02:24]}  Bxf3 {[%clk 0:02:51]} 9. Qxf3 {[%clk 0:02:23]}  Na5 {[%clk 0:02:51]} 10. Rb1 {[%clk 0:02:07]}  c5 {[%clk 0:02:46]} 11. c4 {[%clk 0:02:07]}  dxc4 {[%clk 0:02:39]} 12. Bd2 {[%clk 0:01:52]}  cxd4 {[%clk 0:02:29]} 13. Rb5 {[%clk 0:01:20]}  c3 {[%clk 0:02:25]} 14. Bg5 {[%clk 0:01:17]}  Qxg5 {[%clk 0:02:21]} 15. Rxa5 {[%clk 0:01:15]}  Qd2# {[%clk 0:02:20]} 0-1

[Event "December 5 Late 2023"]
[Site "https://www.chess.com"]
[Date "2023.12.05"]
[Round "10"]
[White "Kotyk, Michael"]
[Black "Nery Junior, Jose Antonio"]
[Result "0-1"]
[Board "87"]
[TimeControl "180+1"]
[WhiteFideId "16214501"]
[BlackFideId "2104822"]
[WhiteElo "2483"]
[BlackElo "2348"]
[WhiteTeam "GER"]
[BlackTeam "BRA"]
[WhiteClock "0:00:04"]
[BlackClock "0:00:31"]

1. Nh3 {[%clk 0:03:00]}  e5 {[%clk 0:02:58]} 2. g3 {[%clk 0:02:58]}  Bc5 {[%clk 0:02:56]} 3. f4 {[%clk 0:02:55]}  d6 {[%clk 0:02:51]} 4. e3 {[%clk 0:02:48]}  h5 {[%clk 0:02:48]} 5. Bg2 {[%clk 0:02:39]}  Bg4 {[%clk 0:02:45]} 6. Bf3 {[%clk 0:02:35]}  Bxh3 {[%clk 0:02:45]} 7. Bxb7 {[%clk 0:02:35]}  Nd7 {[%clk 0:02:40]} 8. d4 {[%clk 0:02:21]}  exd4 {[%clk 0:02:35]} 9. exd4 {[%clk 0:02:20]}  Rb8 {[%clk 0:02:32]} 10. dxc5 {[%clk 0:02:18]}  Rxb7 {[%clk 0:02:26]} 11. c6 {[%clk 0:02:18]}  Rb6 {[%clk 0:02:18]} 12. cxd7+ {[%clk 0:02:17]}  Qxd7 {[%clk 0:02:19]} 13. Nc3 {[%clk 0:02:13]}  Nf6 {[%clk 0:02:15]} 14. Nd5 {[%clk 0:01:50]}  Qe6+ {[%clk 0:02:11]} 15. Ne3 {[%clk 0:01:49]}  O-O {[%clk 0:02:06]} 16. Qd4 {[%clk 0:01:40]}  Ng4 {[%clk 0:01:52]} 17. f5 {[%clk 0:01:33]}  Qe7 {[%clk 0:01:48]} 18. f6 {[%clk 0:01:20]}  gxf6 {[%clk 0:01:35]} 19. Bd2 {[%clk 0:01:08]}  Re8 {[%clk 0:01:32]} 20. Ke2 {[%clk 0:01:08]}  c5 {[%clk 0:01:27]} 21. Qf4 {[%clk 0:01:04]}  d5 {[%clk 0:01:22]} 22. Kf3 {[%clk 0:00:41]}  Nxe3 {[%clk 0:01:07]} 23. Qxe3 {[%clk 0:00:40]}  Qd7 {[%clk 0:01:03]} 24. Qf4 {[%clk 0:00:35]}  Re4 {[%clk 0:00:59]} 25. Qh6 {[%clk 0:00:22]}  Qf5+ {[%clk 0:00:54]} 26. Bf4 {[%clk 0:00:21]}  Bg4+ {[%clk 0:00:38]} 27. Kf2 {[%clk 0:00:17]}  Re2+ {[%clk 0:00:36]} 28. Kg1 {[%clk 0:00:16]}  Qe4 {[%clk 0:00:33]} 29. h3 {[%clk 0:00:04]}  Qg2# {[%clk 0:00:31]} 0-1

[Event "December 5 Late 2023"]
[Site "https://www.chess.com"]
[Date "2023.12.05"]
[Round "10"]
[White "Ventura Bolet, Maxim"]
[Black "Golubenko, Valentina"]
[Result "1-0"]
[Board "88"]
[TimeControl "180+1"]
[WhiteFideId "22238824"]
[BlackFideId "4501993"]
[WhiteElo "2465"]
[BlackElo "2251"]
[WhiteTeam "ESP"]
[BlackTeam "CRO"]
[WhiteClock "0:00:15"]
[BlackClock "0:00:00"]

1. Nf3 {[%clk 0:03:00]}  Nf6 {[%clk 0:02:58]} 2. g3 {[%clk 0:02:58]}  g6 {[%clk 0:02:58]} 3. Bg2 {[%clk 0:02:59]}  Bg7 {[%clk 0:02:58]} 4. O-O {[%clk 0:02:54]}  d5 {[%clk 0:02:58]} 5. d4 {[%clk 0:02:53]}  O-O {[%clk 0:02:57]} 6. c4 {[%clk 0:02:53]}  c6 {[%clk 0:02:57]} 7. cxd5 {[%clk 0:02:53]}  cxd5 {[%clk 0:02:55]} 8. Ne5 {[%clk 0:02:53]}  Nc6 {[%clk 0:02:43]} 9. Nxc6 {[%clk 0:02:53]}  bxc6 {[%clk 0:02:43]} 10. Nc3 {[%clk 0:02:54]}  Bd7 {[%clk 0:02:35]} 11. Bf4 {[%clk 0:02:53]}  Rc8 {[%clk 0:02:34]} 12. Be5 {[%clk 0:02:53]}  Ng4 {[%clk 0:02:21]} 13. Bxg7 {[%clk 0:02:53]}  Kxg7 {[%clk 0:02:21]} 14. Na4 {[%clk 0:02:46]}  e5 {[%clk 0:02:12]} 15. h3 {[%clk 0:02:45]}  Nh6 {[%clk 0:02:07]} 16. dxe5 {[%clk 0:02:45]}  Qe7 {[%clk 0:02:02]} 17. f4 {[%clk 0:02:19]}  Nf5 {[%clk 0:02:01]} 18. Rf3 {[%clk 0:02:07]}  c5 {[%clk 0:01:55]} 19. Nc3 {[%clk 0:01:58]}  d4 {[%clk 0:01:41]} 20. Nd5 {[%clk 0:01:58]}  Qe6 {[%clk 0:01:20]} 21. Ra3 {[%clk 0:01:35]}  Bc6 {[%clk 0:01:06]} 22. Nf6 {[%clk 0:01:00]}  Bxg2 {[%clk 0:01:00]} 23. Kxg2 {[%clk 0:01:01]}  Ne3+ {[%clk 0:00:58]} 24. Rxe3 {[%clk 0:01:01]}  dxe3 {[%clk 0:00:58]} 25. Qd3 {[%clk 0:00:58]}  Rfd8 {[%clk 0:00:51]} 26. Qxe3 {[%clk 0:00:58]}  Rd4 {[%clk 0:00:42]} 27. Rf1 {[%clk 0:00:41]}  Rcd8 {[%clk 0:00:37]} 28. f5 {[%clk 0:00:36]}  Qc6+ {[%clk 0:00:35]} 29. Kh2 {[%clk 0:00:35]}  Rd1 {[%clk 0:00:28]} 30. Rf3 {[%clk 0:00:32]}  R1d2 {[%clk 0:00:24]} 31. Ne4 {[%clk 0:00:24]}  Rxb2 {[%clk 0:00:12]} 32. f6+ {[%clk 0:00:23]}  Kg8 {[%clk 0:00:12]} 33. Qh6 {[%clk 0:00:18]}  Rxe2+ {[%clk 0:00:11]} 34. Rf2 {[%clk 0:00:14]}  Rxf2+ {[%clk 0:00:00]} 35. Nxf2 {[%clk 0:00:15]} 1-0

[Event "December 5 Late 2023"]
[Site "https://www.chess.com"]
[Date "2023.12.05"]
[Round "10"]
[White "Jing, Andrew"]
[Black "Rama, Tejas"]
[Result "0-1"]
[Board "89"]
[TimeControl "180+1"]
[WhiteFideId "30984076"]
[BlackFideId "30907381"]
[WhiteElo "2221"]
[BlackElo "2452"]
[WhiteTeam "USA"]
[BlackTeam "USA"]
[WhiteClock "0:01:11"]
[BlackClock "0:00:05"]

1. d4 {[%clk 0:03:00]}  Nf6 {[%clk 0:02:59]} 2. c4 {[%clk 0:02:59]}  e6 {[%clk 0:02:59]} 3. Nf3 {[%clk 0:02:58]}  d5 {[%clk 0:02:59]} 4. g3 {[%clk 0:02:57]}  dxc4 {[%clk 0:02:59]} 5. Bg2 {[%clk 0:02:57]}  c5 {[%clk 0:02:59]} 6. O-O {[%clk 0:02:55]}  Nc6 {[%clk 0:02:59]} 7. dxc5 {[%clk 0:02:53]}  Qxd1 {[%clk 0:02:59]} 8. Rxd1 {[%clk 0:02:54]}  Bxc5 {[%clk 0:02:59]} 9. Nbd2 {[%clk 0:02:55]}  c3 {[%clk 0:02:59]} 10. bxc3 {[%clk 0:02:56]}  O-O {[%clk 0:02:59]} 11. Nb3 {[%clk 0:02:56]}  Be7 {[%clk 0:02:59]} 12. Nfd4 {[%clk 0:02:56]}  Nxd4 {[%clk 0:02:59]} 13. cxd4 {[%clk 0:02:56]}  Nd5 {[%clk 0:02:59]} 14. Bd2 {[%clk 0:02:55]}  f5 {[%clk 0:02:58]} 15. Rab1 {[%clk 0:02:52]}  b6 {[%clk 0:02:49]} 16. f3 {[%clk 0:02:46]}  Bb7 {[%clk 0:02:41]} 17. Na5 {[%clk 0:02:41]}  Ba6 {[%clk 0:02:32]} 18. e4 {[%clk 0:02:36]}  bxa5 {[%clk 0:02:24]} 19. exd5 {[%clk 0:02:35]}  exd5 {[%clk 0:02:24]} 20. Bxa5 {[%clk 0:02:35]}  Bc4 {[%clk 0:02:18]} 21. Rd2 {[%clk 0:02:31]}  Rab8 {[%clk 0:02:13]} 22. Rxb8 {[%clk 0:02:21]}  Rxb8 {[%clk 0:02:13]} 23. f4 {[%clk 0:02:21]}  Rb1+ {[%clk 0:02:00]} 24. Kf2 {[%clk 0:02:20]}  Ba3 {[%clk 0:01:58]} 25. Bc3 {[%clk 0:02:17]}  Bc1 {[%clk 0:01:43]} 26. Rc2 {[%clk 0:02:08]}  Bd3 {[%clk 0:01:35]} 27. Bxd5+ {[%clk 0:02:07]}  Kh8 {[%clk 0:01:25]} 28. Bb3 {[%clk 0:02:00]}  Bxc2 {[%clk 0:01:22]} 29. Bxc2 {[%clk 0:02:01]}  Rb5 {[%clk 0:01:16]} 30. Bd3 {[%clk 0:01:58]}  Rd5 {[%clk 0:01:12]} 31. Bc4 {[%clk 0:01:58]}  Rd8 {[%clk 0:01:11]} 32. Ke2 {[%clk 0:01:58]}  h6 {[%clk 0:00:53]} 33. d5 {[%clk 0:01:52]}  Kh7 {[%clk 0:00:48]} 34. Be5 {[%clk 0:01:52]}  g5 {[%clk 0:00:41]} 35. Kd3 {[%clk 0:01:51]}  Kg6 {[%clk 0:00:36]} 36. Kc2 {[%clk 0:01:47]}  Be3 {[%clk 0:00:33]} 37. Kd3 {[%clk 0:01:46]}  Bg1 {[%clk 0:00:32]} 38. Bd4 {[%clk 0:01:37]}  Bxh2 {[%clk 0:00:25]} 39. Bxa7 {[%clk 0:01:37]}  Bxg3 {[%clk 0:00:24]} 40. fxg5 {[%clk 0:01:38]}  hxg5 {[%clk 0:00:24]} 41. Bd4 {[%clk 0:01:38]}  g4 {[%clk 0:00:22]} 42. a4 {[%clk 0:01:38]}  Bc7 {[%clk 0:00:22]} 43. Ke2 {[%clk 0:01:37]}  f4 {[%clk 0:00:21]} 44. Bd3+ {[%clk 0:01:37]}  Kg5 {[%clk 0:00:20]} 45. Be4 {[%clk 0:01:38]}  Re8 {[%clk 0:00:20]} 46. Kd3 {[%clk 0:01:38]}  g3 {[%clk 0:00:19]} 47. Bf3 {[%clk 0:01:38]}  Kh4 {[%clk 0:00:16]} 48. a5 {[%clk 0:01:38]}  Kh3 {[%clk 0:00:17]} 49. a6 {[%clk 0:01:37]}  Kh2 {[%clk 0:00:14]} 50. a7 {[%clk 0:01:38]}  Bd6 {[%clk 0:00:13]} 51. Kc4 {[%clk 0:01:22]}  g2 {[%clk 0:00:13]} 52. Bxg2 {[%clk 0:01:20]}  Kxg2 {[%clk 0:00:14]} 53. Kb5 {[%clk 0:01:20]}  f3 {[%clk 0:00:14]} 54. Kc6 {[%clk 0:01:20]}  Bg3 {[%clk 0:00:11]} 55. d6 {[%clk 0:01:19]}  f2 {[%clk 0:00:08]} 56. d7 {[%clk 0:01:16]}  Rd8 {[%clk 0:00:03]} 57. Bb6 {[%clk 0:01:12]}  f1=Q {[%clk 0:00:03]} 58. Bxd8 {[%clk 0:01:13]}  Qc4+ {[%clk 0:00:03]} 59. Kb7 {[%clk 0:01:13]}  Qb5+ {[%clk 0:00:03]} 60. Bb6 {[%clk 0:01:12]}  Qxd7+ {[%clk 0:00:03]} 61. Ka6 {[%clk 0:01:12]}  Qa4+ {[%clk 0:00:03]} 62. Kb7 {[%clk 0:01:12]}  Qd7+ {[%clk 0:00:04]} 63. Ka6 {[%clk 0:01:11]}  Qc8+ {[%clk 0:00:04]} 64. Kb5 {[%clk 0:01:11]}  Qb7 {[%clk 0:00:05]} 65. Ka5 {[%clk 0:01:12]}  Bc7 {[%clk 0:00:05]} 66. Bxc7 {[%clk 0:01:12]}  Qxa7+ {[%clk 0:00:04]} 67. Kb5 {[%clk 0:01:11]}  Qxc7 {[%clk 0:00:05]} 0-1

[Event "December 5 Late 2023"]
[Site "https://www.chess.com"]
[Date "2023.12.05"]
[Round "10"]
[White "Rios Escobar, Adan"]
[Black "De Souza, Cristiano Gomes"]
[Result "0-1"]
[Board "91"]
[TimeControl "180+1"]
[WhiteFideId "3403645"]
[BlackFideId "2151758"]
[WhiteElo "2429"]
[BlackElo "2228"]
[WhiteTeam "CHI"]
[BlackTeam "BRA"]
[WhiteClock "0:00:00"]
[BlackClock "0:00:23"]

1. Nf3 {[%clk 0:02:51]}  Nf6 {[%clk 0:02:59]} 2. c4 {[%clk 0:02:50]}  g6 {[%clk 0:02:57]} 3. Nc3 {[%clk 0:02:50]}  Bg7 {[%clk 0:02:57]} 4. e4 {[%clk 0:02:51]}  d6 {[%clk 0:02:58]} 5. d4 {[%clk 0:02:51]}  O-O {[%clk 0:02:57]} 6. Bd3 {[%clk 0:02:50]}  Bg4 {[%clk 0:02:55]} 7. Be2 {[%clk 0:02:49]}  Nc6 {[%clk 0:02:54]} 8. d5 {[%clk 0:02:38]}  Bxf3 {[%clk 0:02:53]} 9. gxf3 {[%clk 0:02:31]}  Ne5 {[%clk 0:02:46]} 10. f4 {[%clk 0:02:31]}  Ned7 {[%clk 0:02:46]} 11. h4 {[%clk 0:02:29]}  e6 {[%clk 0:02:42]} 12. Be3 {[%clk 0:02:18]}  exd5 {[%clk 0:02:42]} 13. cxd5 {[%clk 0:02:17]}  Re8 {[%clk 0:02:42]} 14. Qc2 {[%clk 0:02:08]}  a5 {[%clk 0:02:40]} 15. O-O-O {[%clk 0:02:05]}  Qe7 {[%clk 0:02:33]} 16. Bf3 {[%clk 0:01:47]}  h5 {[%clk 0:02:25]} 17. Rhg1 {[%clk 0:01:41]}  Rec8 {[%clk 0:02:22]} 18. Kb1 {[%clk 0:01:31]}  c6 {[%clk 0:01:57]} 19. e5 {[%clk 0:01:24]}  dxe5 {[%clk 0:01:57]} 20. d6 {[%clk 0:01:06]}  Qe8 {[%clk 0:01:39]} 21. f5 {[%clk 0:01:02]}  Kh7 {[%clk 0:01:30]} 22. fxg6+ {[%clk 0:00:54]}  fxg6 {[%clk 0:01:30]} 23. Ne4 {[%clk 0:00:52]}  Rd8 {[%clk 0:01:18]} 24. Rg5 {[%clk 0:00:34]}  Kh8 {[%clk 0:01:00]} 25. Rdg1 {[%clk 0:00:29]}  Nf8 {[%clk 0:00:48]} 26. Nxf6 {[%clk 0:00:18]}  Bxf6 {[%clk 0:00:47]} 27. Rxg6 {[%clk 0:00:15]}  Nxg6 {[%clk 0:00:46]} 28. Rxg6 {[%clk 0:00:16]}  Bg7 {[%clk 0:00:37]} 29. Bxh5 {[%clk 0:00:13]}  Qf8 {[%clk 0:00:36]} 30. Bg5 {[%clk 0:00:07]}  Rxd6 {[%clk 0:00:36]} 31. Rxd6 {[%clk 0:00:05]}  Qxd6 {[%clk 0:00:35]} 32. Qf5 {[%clk 0:00:05]}  Rf8 {[%clk 0:00:34]} 33. Qg4 {[%clk 0:00:02]}  Rxf2 {[%clk 0:00:28]} 34. a3 {[%clk 0:00:02]}  Qd3+ {[%clk 0:00:25]} 35. Ka1 {[%clk 0:00:01]}  Rf1+ {[%clk 0:00:24]} 36. Ka2 {[%clk 0:00:00]}  Qd5+ {[%clk 0:00:23]} 0-1